bitfinex/quotes_BTCUSD_20230901
["timestamp","ask_amount","ask_price","bid_price","bid_amount"]
[1693591725992,0.26082589,25543.0,25542.0,0.075]
[1693591726172,0.26118589,25543.0,25542.0,0.075]
[1693591726372,0.26124589,25543.0,25542.0,0.075]
[1693591726614,0.26226589,25543.0,25542.0,0.095]
[1693591726814,0.26538589,25543.0,25542.0,0.095]
[1693591727007,0.26562589,25543.0,25542.0,0.095]
[1693591727193,0.26556589,25543.0,25542.0,0.095]
[1693591727477,0.26766589,25543.0,25542.0,0.095]
[1693591727794,0.26316589,25543.0,25542.0,0.095]
[1693591728002,0.26292589,25543.0,25542.0,0.058]
[1693591728205,0.26652589,25543.0,25542.0,0.02]
[1693591728411,0.26280589,25543.0,25542.0,0.085]
[1693591728609,0.26370589,25543.0,25542.0,0.085]
[1693591728812,0.26178589,25543.0,25542.0,0.085]
[1693591729030,0.26136589,25543.0,25542.0,0.085]
[1693591729264,0.26148589,25543.0,25542.0,0.085]
[1693591729413,0.26094589,25543.0,25542.0,0.085]
[1693591729614,0.25956589,25543.0,25542.0,0.085]
[1693591729813,0.26334589,25543.0,25542.0,0.085]
[1693591730037,0.26202589,25543.0,25542.0,0.085]
[1693591730241,0.26508589,25543.0,25542.0,0.085]
[1693591730395,0.26502589,25543.0,25542.0,0.085]
[1693591730598,0.26280589,25543.0,25542.0,0.085]
[1693591730794,0.26454589,25543.0,25542.0,0.085]
[1693591730994,0.26292589,25543.0,25542.0,0.085]
[1693591731190,0.26088589,25543.0,25542.0,0.065]
[1693591731395,0.26136589,25543.0,25542.0,0.085]
[1693591731654,0.26118589,25543.0,25542.0,0.085]
[1693591731886,0.25842589,25543.0,25542.0,0.085]
[1693591732108,0.44257806,25543.0,25542.0,0.085]
[1693591732327,0.33913806,25543.0,25542.0,0.47208678]
[1693591732723,0.15492589,25543.0,25542.0,0.47208678]
[1693591733229,0.15492589,25543.0,25542.0,0.53208678]
[1693591734863,0.15492589,25543.0,25542.0,0.72782678]
[1693591736830,0.15492589,25543.0,25542.0,0.74782678]
[1693591737241,0.03212589,25543.0,25542.0,0.74782678]
[1693591737612,0.03212589,25543.0,25542.0,1.04782678]
[1693591737856,0.26273548,25554.0,25553.0,0.08]
[1693591738065,0.0194,25556.0,25555.0,0.26]
[1693591738275,0.0194,25564.0,25561.0,0.18]
[1693591738496,0.20302792,25562.0,25561.0,0.96263678]
[1693591738711,0.32582792,25562.0,25561.0,0.76708678]
[1693591738914,0.43238792,25562.0,25561.0,0.76708678]
[1693591739130,0.39770792,25562.0,25561.0,0.76708678]
[1693591739344,0.20302792,25562.0,25561.0,0.76708678]
[1693591739756,0.32582792,25562.0,25561.0,0.80508678]
[1693591739982,0.41601754,25562.0,25561.0,0.80508678]
[1693591740186,0.22854,25562.0,25561.0,0.80508678]
[1693591740392,0.22818,25562.0,25561.0,0.48508678]
[1693591740605,0.26544,25562.0,25561.0,0.48508678]
[1693591740814,0.2562,25562.0,25561.0,0.52208678]
[1693591741023,0.0194,25562.0,25561.0,0.80408678]
[1693591741234,0.0194,25562.0,25561.0,0.78708678]
[1693591741439,0.0194,25562.0,25561.0,0.86108678]
[1693591741853,0.0194,25562.0,25561.0,0.88408678]
[1693591742073,0.0194,25562.0,25561.0,0.92208678]
[1693591742497,0.0194,25562.0,25561.0,0.88408678]
[1693591742699,0.0194,25562.0,25561.0,0.84708678]
[1693591742910,0.0194,25562.0,25561.0,0.88408678]
[1693591743119,0.0194,25562.0,25561.0,0.84108678]
[1693591743319,0.1422,25562.0,25561.0,0.80408678]
[1693591743525,0.1422,25562.0,25561.0,0.84108678]
[1693591743725,0.21456,25562.0,25561.0,0.84108678]
[1693591743946,0.0878,25562.0,25561.0,1.02755578]
[1693591744151,0.0194,25562.0,25561.0,1.00755578]
[1693591745780,0.09104,25562.0,25561.0,1.00755578]
[1693591745985,0.21906,25562.0,25561.0,0.43195578]
[1693591746169,0.26232,25562.0,25561.0,0.43195578]
[1693591746303,0.24612,25562.0,25561.0,0.43195578]
[1693591746504,0.1422,25562.0,25561.0,0.43195578]
[1693591746733,0.1422,25562.0,25561.0,0.39495578]
[1693591746948,0.1422,25562.0,25561.0,0.45495578]
[1693591746949,0.0194,25562.0,25561.0,0.45495578]
[1693591747202,0.0194,25562.0,25561.0,0.47495578]
[1693591747403,0.0194,25562.0,25561.0,0.49495578]
[1693591747747,0.0194,25562.0,25561.0,0.45795578]
[1693591747950,0.0194,25562.0,25561.0,0.49495578]
[1693591748445,0.0194,25562.0,25561.0,0.45795578]
[1693591748649,0.0194,25562.0,25561.0,0.49495578]
[1693591749206,0.0194,25562.0,25561.0,0.53195578]
[1693591749401,0.0194,25562.0,25561.0,0.49495578]
[1693591749807,0.0194,25562.0,25561.0,0.53195578]
[1693591751079,0.0194,25562.0,25561.0,0.51195578]
[1693591751283,0.0194,25562.0,25561.0,0.49195578]
[1693591751498,0.25764,25562.0,25561.0,0.45195578]
[1693591751699,0.2559,25562.0,25561.0,0.43195578]
[1693591751903,0.26088,25562.0,25561.0,0.43195578]
[1693591752102,0.45312,25562.0,25561.0,0.074]
[1693591752303,0.54012,25562.0,25561.0,0.074]
[1693591752509,0.76122,25562.0,25561.0,0.074]
[1693591752713,0.53064,25562.0,25561.0,0.074]
[1693591752914,0.52092,25562.0,25561.0,0.074]
[1693591753042,0.54336,25562.0,25561.0,0.037]
[1693591753247,0.73476,25562.0,25561.0,0.071]
[1693591753450,0.54012,25562.0,25561.0,0.071]
[1693591753676,0.66976,25562.0,25556.0,0.08099955]
[1693591754020,0.1228,25557.0,25556.0,0.08099955]
[1693591754332,0.23704,25557.0,25556.0,0.08]
[1693591754536,0.2389,25557.0,25556.0,0.08]
[1693591754770,0.23674,25557.0,25556.0,0.08]
[1693591754998,0.23728,25557.0,25556.0,0.08]
[1693591755200,0.23692,25557.0,25556.0,0.08]
[1693591755413,0.2362,25557.0,25556.0,0.117]
[1693591755709,0.23464,25557.0,25556.0,0.154]
[1693591755910,0.23374,25557.0,25556.0,0.117]
[1693591756118,0.2347,25557.0,25556.0,0.117]
[1693591756310,0.235,25557.0,25556.0,0.154]
[1693591756604,0.2338,25557.0,25556.0,0.154]
[1693591756822,0.22432,25557.0,25556.0,0.154]
[1693591756996,0.22708,25557.0,25556.0,0.154]
[1693591757298,0.2209,25557.0,25556.0,0.154]
[1693591757499,0.21922,25557.0,25556.0,0.154]
[1693591757714,0.21886,25557.0,25556.0,0.154]
[1693591757920,0.2152,25557.0,25556.0,0.154]
[1693591758120,0.20882,25557.0,25556.0,0.154]
[1693591758262,0.2078,25557.0,25556.0,0.154]
[1693591758469,0.20666,25557.0,25556.0,0.154]
[1693591758686,0.20678,25557.0,25556.0,0.154]
[1693591758861,0.20552,25557.0,25556.0,0.154]
[1693591759075,0.2006,25557.0,25556.0,0.154]
[1693591759251,0.19052,25557.0,25556.0,0.074]
[1693591759453,0.59975471,25557.0,25556.0,0.074]
[1693591759660,0.67488,25557.0,25556.0,0.074]
[1693591759856,0.65916,25557.0,25556.0,0.074]
[1693591760060,0.89784,25557.0,25556.0,0.074]
[1693591760261,1.69822678,25557.0,25556.0,0.037]
[1693591760509,1.69822678,25557.0,25551.0,0.00099863]
[1693591760510,0.02,25552.0,25551.0,0.00099863]
[1693591760684,0.02,25552.0,25542.0,0.42166573]
[1693591760685,0.04,25550.0,25542.0,0.02]
[1693591760883,0.15483471,25549.0,25547.0,0.00098073]
[1693591761087,0.54315471,25549.0,25542.0,0.02]
[1693591761289,0.54051471,25549.0,25543.0,1.12968929]
[1693591761548,0.35292,25548.0,25544.0,1.1287045]
[1693591761682,0.1228,25545.0,25544.0,1.1287045]
[1693591761876,0.50691471,25548.0,25544.0,1.1287045]
[1693591761877,0.3552,25548.0,25544.0,1.1287045]
[1693591762108,0.1228,25545.0,25544.0,1.1287045]
[1693591762389,0.1637,25545.0,25544.0,1.1287045]
[1693591762576,0.156621,25548.0,25545.0,0.40122]
[1693591762761,0.5168,25551.0,25545.0,0.40122]
[1693591762762,0.5168,25551.0,25546.0,1.59579128]
[1693591762938,0.0672,25549.0,25547.0,1.1287045]
[1693591763142,0.001,25549.0,25548.0,0.38708678]
[1693591763338,0.1647,25549.0,25548.0,1.1287045]
[1693591763761,0.28238,25549.0,25548.0,1.1287045]
[1693591763964,0.28428,25549.0,25548.0,1.1287045]
[1693591764138,0.28452,25549.0,25548.0,1.1287045]
[1693591764342,0.28416,25549.0,25548.0,1.1287045]
[1693591764599,0.27806,25549.0,25548.0,1.51579128]
[1693591764801,0.1637,25549.0,25548.0,1.54779128]
[1693591765144,0.06894,25550.0,25549.0,0.06]
[1693591765345,0.1573,25551.0,25549.0,1.57579128]
[1693591765546,0.1573,25551.0,25550.0,1.51579128]
[1693591766148,0.1637,25552.0,25550.0,1.51579128]
[1693591766365,0.1637,25552.0,25551.0,1.1287045]
[1693591766998,0.23648,25552.0,25551.0,1.1287045]
[1693591767172,0.23678,25552.0,25551.0,1.1287045]
[1693591767392,0.2309,25552.0,25551.0,1.1287045]
[1693591767599,0.23096,25552.0,25551.0,1.1287045]
[1693591767802,0.2309,25552.0,25551.0,1.1657045]
[1693591768029,0.2297,25552.0,25551.0,1.1657045]
[1693591768233,0.23144,25552.0,25551.0,1.1657045]
[1693591768430,0.23384,25552.0,25551.0,1.1657045]
[1693591768630,0.23186,25552.0,25551.0,1.1657045]
[1693591768835,0.23522,25552.0,25551.0,1.1657045]
[1693591769150,0.23594,25552.0,25551.0,1.1657045]
[1693591769353,0.23762,25552.0,25551.0,1.2027045]
[1693591769908,0.23876,25552.0,25551.0,1.1657045]
[1693591770124,0.003,25552.0,25551.0,1.66979128]
[1693591770743,0.003,25552.0,25551.0,1.58979128]
[1693591770945,0.003,25552.0,25551.0,1.2025221]
[1693591771156,0.1637,25552.0,25551.0,1.2025221]
[1693591771360,0.65344,25552.0,25551.0,1.1975221]
[1693591771564,0.65968,25552.0,25551.0,1.1975221]
[1693591771765,0.6568,25552.0,25551.0,1.1975221]
[1693591771963,0.68636,25552.0,25551.0,1.1975221]
[1693591772169,0.68636,25552.0,25551.0,0.069]
[1693591772170,0.77056,25552.0,25551.0,0.069]
[1693591772370,0.77776,25552.0,25551.0,0.069]
[1693591772575,0.77576,25552.0,25551.0,0.069]
[1693591772779,0.9746,25552.0,25551.0,0.069]
[1693591772984,1.57086678,25552.0,25551.0,0.069]
[1693591773193,0.06,25548.0,25545.0,0.00099618]
[1693591773397,0.15483471,25547.0,25546.0,1.12873774]
[1693591773623,0.66161471,25547.0,25546.0,1.12873774]
[1693591773830,0.66161471,25547.0,25542.0,0.00099675]
[1693591773831,0.04,25543.0,25542.0,0.00099675]
[1693591774082,0.19483471,25543.0,25542.0,0.00099675]
[1693591774290,0.19483471,25543.0,25540.0,0.0001]
[1693591774291,0.14698,25543.0,25540.0,0.0001]
[1693591774496,1.1288246,25542.0,25540.0,0.0001]
[1693591774701,0.1637,25541.0,25540.0,0.0001]
[1693591774909,1.3684246,25541.0,25540.0,0.0001]
[1693591775110,1.3693246,25541.0,25540.0,0.0001]
[1693591775315,1.2925246,25541.0,25540.0,0.0001]
[1693591775935,1.2945246,25541.0,25540.0,0.0271]
[1693591776144,1.1308246,25541.0,25540.0,0.60789027]
[1693591776352,1.1308246,25541.0,25540.0,1.04098673]
[1693591776353,1.1288246,25541.0,25540.0,1.04098673]
[1693591776555,0.0699,25545.0,25544.0,0.08]
[1693591776756,0.07866,25545.0,25544.0,0.46708678]
[1693591776964,0.25748,25546.0,25545.0,0.02]
[1693591777164,0.2507,25546.0,25545.0,0.04]
[1693591777375,0.2507,25546.0,25541.0,0.08]
[1693591777376,0.43694,25546.0,25541.0,0.08]
[1693591777574,0.43694,25546.0,25545.0,0.06]
[1693591777575,0.2682,25546.0,25545.0,0.06]
[1693591777772,0.1637,25545.0,25544.0,0.099]
[1693591777981,0.25718,25545.0,25544.0,0.099]
[1693591778185,0.1637,25545.0,25544.0,0.059]
[1693591778384,0.26126,25545.0,25544.0,0.019]
[1693591778587,0.25682,25545.0,25544.0,0.019]
[1693591778792,0.1637,25545.0,25544.0,0.019]
[1693591778992,0.1637,25545.0,25543.0,0.06]
[1693591779194,0.1637,25545.0,25543.0,0.44708678]
[1693591779397,0.24116,25545.0,25544.0,0.008]
[1693591779599,0.2447,25545.0,25544.0,0.008]
[1693591779803,0.24602,25545.0,25544.0,0.008]
[1693591780030,0.1637,25545.0,25544.0,0.008]
[1693591780235,0.1637,25545.0,25543.0,0.47908678]
[1693591780643,0.1647,25545.0,25544.0,0.021]
[1693591780855,0.001,25545.0,25544.0,0.61333149]
[1693591781267,0.001,25545.0,25544.0,1.61093641]
[1693591781495,0.001,25545.0,25544.0,1.63093641]
[1693591781706,0.001,25545.0,25544.0,1.69723292]
[1693591782109,0.2366,25552.0,25544.0,1.67623292]
[1693591782313,0.2366,25552.0,25551.0,0.06]
[1693591782314,0.1637,25552.0,25551.0,0.06]
[1693591783554,0.1637,25552.0,25551.0,0.089]
[1693591783755,0.1637,25552.0,25551.0,0.127]
[1693591783964,0.1637,25552.0,25551.0,0.098]
[1693591784173,0.156569,25553.0,25551.0,0.127]
[1693591784389,0.156569,25553.0,25552.0,0.46708678]
[1693591784593,0.135,25557.0,25554.0,0.06]
[1693591784594,0.2501,25556.0,25554.0,0.06]
[1693591784799,0.26816,25557.0,25554.0,0.06]
[1693591785041,0.09846,25556.0,25554.0,0.06]
[1693591785259,0.10608,25556.0,25554.0,0.06]
[1693591785469,0.09282,25555.0,25554.0,0.06]
[1693591785676,0.47186,25555.0,25552.0,0.02]
[1693591785889,0.47186,25555.0,25552.0,0.06]
[1693591785890,0.1637,25553.0,25552.0,0.06]
[1693591786516,0.26066,25553.0,25552.0,0.06]
[1693591786723,0.26108,25553.0,25552.0,0.06]
[1693591786930,0.26162,25553.0,25552.0,0.127]
[1693591787137,0.2639,25553.0,25552.0,0.098]
[1693591787340,0.26654,25553.0,25552.0,0.098]
[1693591787543,0.26804,25553.0,25552.0,0.098]
[1693591787745,0.2858,25553.0,25552.0,0.098]
[1693591787952,0.29024,25553.0,25552.0,0.098]
[1693591788150,0.42878,25553.0,25552.0,0.098]
[1693591788371,0.29438,25553.0,25552.0,0.098]
[1693591788574,0.28208,25553.0,25552.0,0.127]
[1693591788790,0.27302,25553.0,25552.0,0.067]
[1693591788996,0.45878,25553.0,25552.0,0.067]
[1693591789174,0.45734,25553.0,25552.0,0.067]
[1693591789402,0.45122,25553.0,25552.0,0.067]
[1693591789601,0.08988,25553.0,25552.0,0.067]
[1693591789806,0.06702,25553.0,25552.0,0.067]
[1693591790020,0.06906,25553.0,25552.0,0.067]
[1693591790219,0.156567,25554.0,25552.0,0.067]
[1693591790425,0.06738,25553.0,25552.0,0.087]
[1693591790629,0.07182,25553.0,25552.0,0.087]
[1693591790833,0.08126811,25553.0,25552.0,0.087]
[1693591791032,0.0843,25553.0,25552.0,0.087]
[1693591791162,0.08538,25553.0,25552.0,0.087]
[1693591791371,0.08016,25553.0,25552.0,0.087]
[1693591791569,0.08292,25553.0,25552.0,0.087]
[1693591791744,0.08424,25553.0,25552.0,0.029]
[1693591791948,0.0855,25553.0,25552.0,0.53408678]
[1693591792148,0.09762,25559.0,25552.0,0.83408678]
[1693591792355,0.09144,25559.0,25558.0,0.06]
[1693591792614,0.18436924,25559.0,25558.0,0.06]
[1693591792821,0.29794924,25559.0,25558.0,0.06]
[1693591793040,0.27370924,25559.0,25558.0,0.06]
[1693591793339,0.27760924,25559.0,25558.0,0.06]
[1693591793537,0.27760924,25559.0,25558.0,0.066]
[1693591793538,0.29248924,25559.0,25558.0,0.066]
[1693591793739,0.46176924,25559.0,25558.0,0.066]
[1693591794086,0.46008924,25559.0,25558.0,0.066]
[1693591794314,0.45306924,25559.0,25558.0,0.066]
[1693591794444,0.60594324,25559.0,25558.0,0.066]
[1693591794645,0.60510324,25559.0,25558.0,0.066]
[1693591794852,0.60748324,25559.0,25558.0,0.06]
[1693591795055,0.60648324,25559.0,25558.0,0.078]
[1693591795255,0.60600324,25559.0,25558.0,0.078]
[1693591795629,0.60492324,25559.0,25558.0,0.081]
[1693591795849,0.60516324,25559.0,25558.0,0.081]
[1693591796050,0.42856324,25559.0,25558.0,0.101]
[1693591796253,0.08214,25560.0,25558.0,0.101]
[1693591796378,0.08256,25560.0,25558.0,0.101]
[1693591796584,0.08184,25560.0,25559.0,0.08]
[1693591796788,0.26410167,25560.0,25559.0,0.08]
[1693591796988,0.26398167,25560.0,25559.0,0.08]
[1693591797187,0.26620167,25560.0,25559.0,0.08]
[1693591797392,0.26476167,25560.0,25559.0,0.08]
[1693591797597,0.08028,25560.0,25559.0,0.08]
[1693591797804,0.0813,25560.0,25559.0,0.08]
[1693591798012,0.07794,25560.0,25559.0,0.08]
[1693591798201,0.08004,25560.0,25559.0,0.08]
[1693591798402,0.07968,25560.0,25559.0,0.08]
[1693591798613,0.15652,25561.0,25560.0,0.08]
[1693591798830,0.0194,25562.0,25561.0,0.06]
[1693591799034,0.0194,25562.0,25561.0,0.44708678]
[1693591799230,0.20349298,25562.0,25561.0,0.44708678]
[1693591799615,0.0194,25562.0,25561.0,0.44708678]
[1693591799817,0.08972,25562.0,25561.0,0.44708678]
[1693591800018,0.0194,25562.0,25561.0,0.44708678]
[1693591800251,0.0194,25562.0,25561.0,0.46708678]
[1693591800459,0.11546,25562.0,25561.0,0.08]
[1693591800658,0.12374,25562.0,25561.0,0.08]
[1693591800859,0.12212,25562.0,25561.0,0.08]
[1693591801069,0.1208,25562.0,25561.0,0.08]
[1693591801271,0.10334,25562.0,25561.0,0.117]
[1693591801468,0.0194,25562.0,25561.0,0.117]
[1693591801672,0.0194,25562.0,25561.0,0.50508678]
[1693591802324,0.0194,25562.0,25561.0,0.52008678]
[1693591802449,0.0194,25562.0,25561.0,0.48208678]
[1693591802672,0.0194,25562.0,25561.0,0.50408678]
[1693591802877,0.0194,25562.0,25561.0,0.54108678]
[1693591803286,0.0194,25562.0,25561.0,0.50408678]
[1693591803528,0.0194,25562.0,25561.0,0.54108678]
[1693591804498,0.0194,25562.0,25561.0,0.50408678]
[1693591805123,0.0194,25562.0,25561.0,0.54108678]
[1693591805354,0.0194,25562.0,25561.0,0.50408678]
[1693591805564,0.0194,25562.0,25561.0,0.54108678]
[1693591806588,0.0194,25562.0,25561.0,0.9545646]
[1693591806762,0.0194,25562.0,25561.0,0.86108678]
[1693591807193,0.0194,25562.0,25561.0,0.84108678]
[1693591808614,0.0194,25562.0,25561.0,0.86108678]
[1693591809171,0.0194,25562.0,25561.0,0.84108678]
[1693591809692,0.0194,25562.0,25561.0,0.86108678]
[1693591809894,0.0194,25562.0,25561.0,0.84108678]
[1693591810667,0.0194,25562.0,25561.0,0.54108678]
[1693591810870,0.0194,25562.0,25561.0,0.56108678]
[1693591813144,0.09656,25562.0,25561.0,0.56108678]
[1693591813353,0.09278,25562.0,25561.0,0.56108678]
[1693591813564,0.0194,25562.0,25561.0,0.56108678]
[1693591814961,0.0194,25562.0,25561.0,0.174]
[1693591815119,0.11066,25562.0,25561.0,0.174]
[1693591815345,0.10592,25562.0,25561.0,0.174]
[1693591815552,0.1049,25562.0,25561.0,0.174]
[1693591815757,0.10412,25562.0,25561.0,0.137]
[1693591815982,0.1031,25562.0,25561.0,0.137]
[1693591816330,0.0194,25562.0,25561.0,0.137]
[1693591816536,0.0194,25562.0,25561.0,0.1]
[1693591816740,0.0194,25562.0,25561.0,0.129]
[1693591816945,0.0194,25562.0,25561.0,0.166]
[1693591817468,0.0194,25562.0,25561.0,0.129]
[1693591817469,0.08876,25562.0,25561.0,0.129]
[1693591817624,0.089,25562.0,25561.0,0.129]
[1693591817876,0.08876,25562.0,25561.0,0.166]
[1693591818057,0.0194,25562.0,25561.0,0.166]
[1693591818208,0.0194,25562.0,25561.0,0.129]
[1693591818410,0.0194,25562.0,25561.0,0.1]
[1693591818611,0.38515471,25562.0,25561.0,0.037]
[1693591818869,1.05005887,25562.0,25561.0,0.037]
[1693591819060,0.90662416,25562.0,25561.0,0.037]
[1693591819271,0.89462416,25562.0,25561.0,0.037]
[1693591819482,0.89486416,25562.0,25561.0,0.037]
[1693591819681,0.76662416,25562.0,25561.0,0.037]
[1693591820008,0.04,25561.0,25560.0,0.0001]
[1693591820213,0.34670416,25561.0,25560.0,0.0001]
[1693591820415,0.41548,25561.0,25560.0,0.0001]
[1693591820617,0.3795,25561.0,25560.0,0.0001]
[1693591820823,0.37968,25561.0,25560.0,0.0001]
[1693591821022,0.35844,25561.0,25560.0,0.0801]
[1693591821241,0.38508,25561.0,25560.0,0.0801]
[1693591821437,0.5598,25561.0,25560.0,0.0801]
[1693591821636,0.56056,25561.0,25560.0,0.1141]
[1693591821845,0.38566,25561.0,25560.0,0.1151]
[1693591822076,0.38536,25561.0,25560.0,0.1141]
[1693591822279,0.38632,25561.0,25560.0,0.1431]
[1693591822477,0.39226,25561.0,25560.0,0.1431]
[1693591822712,0.39634,25561.0,25560.0,0.1141]
[1693591822826,0.39708,25561.0,25560.0,0.0961]
[1693591823075,0.38994,25561.0,25560.0,0.0961]
[1693591823283,0.39246,25561.0,25560.0,0.1291]
[1693591823481,0.54792,25561.0,25560.0,0.1291]
[1693591823708,0.75751518,25561.0,25560.0,0.0491]
[1693591823938,0.85895518,25561.0,25560.0,0.0491]
[1693591824104,0.85547518,25561.0,25560.0,0.0491]
[1693591824318,0.85043518,25561.0,25560.0,0.0491]
[1693591824520,0.84827518,25561.0,25560.0,0.0491]
[1693591824749,0.84227518,25561.0,25560.0,0.0491]
[1693591824930,0.84851518,25561.0,25560.0,0.0491]
[1693591825186,1.26880196,25561.0,25560.0,0.0491]
[1693591825372,1.86998196,25561.0,25560.0,0.0491]
[1693591825690,2.41863816,25561.0,25560.0,0.0491]
[1693591825893,0.06,25557.0,25556.0,0.00098096]
[1693591826096,0.04,25555.0,25552.0,0.31325558]
[1693591826374,0.1226,25553.0,25552.0,0.31325558]
[1693591826518,0.27743471,25553.0,25552.0,0.21995335]
[1693591826713,0.23504,25553.0,25552.0,0.21995335]
[1693591826974,0.22352,25553.0,25552.0,0.68274417]
[1693591827168,0.21818,25553.0,25552.0,0.68274417]
[1693591827369,0.1571,25555.0,25554.0,0.1]
[1693591827723,0.1571,25555.0,25554.0,0.19353173]
[1693591827909,0.1571,25555.0,25554.0,0.1]
[1693591828130,0.1571,25555.0,25554.0,0.08]
[1693591828131,0.4514,25555.0,25554.0,0.08]
[1693591828332,0.45314,25555.0,25553.0,0.29818]
[1693591828533,0.45314,25555.0,25553.0,0.21818]
[1693591828534,0.62756,25555.0,25553.0,0.21818]
[1693591828675,0.6312,25555.0,25554.0,0.063]
[1693591828876,0.54825312,25555.0,25554.0,0.037]
[1693591829221,0.89085312,25555.0,25554.0,0.037]
[1693591829420,0.68556,25555.0,25554.0,0.037]
[1693591829619,0.68964,25555.0,25554.0,0.037]
[1693591829779,0.705,25555.0,25553.0,0.21818]
[1693591829980,1.05068893,25555.0,25553.0,0.21818]
[1693591830178,0.30408,25554.0,25553.0,0.23218]
[1693591830407,0.32364,25554.0,25553.0,0.23218]
[1693591830612,0.50873716,25554.0,25553.0,0.21818]
[1693591830814,0.48629716,25554.0,25553.0,0.21818]
[1693591831022,0.45401716,25554.0,25553.0,0.23218]
[1693591831221,0.44969716,25554.0,25553.0,0.23218]
[1693591831540,0.26424,25554.0,25553.0,0.21818]
[1693591831774,0.13216,25554.0,25553.0,0.23218]
[1693591831975,0.26932,25554.0,25553.0,0.23218]
[1693591832177,0.26536,25554.0,25553.0,0.23218]
[1693591832456,0.1441,25554.0,25553.0,0.23218]
[1693591832663,0.1441,25554.0,25550.0,0.23392933]
[1693591832664,0.4097,25551.0,25550.0,0.0001]
[1693591832864,0.4097,25551.0,25550.0,0.6962478]
[1693591832865,0.95162149,25551.0,25550.0,0.6962478]
[1693591833080,1.13086678,25551.0,25550.0,0.0001]
[1693591833279,0.26724,25551.0,25550.0,0.0001]
[1693591833484,0.12624,25551.0,25550.0,0.0001]
[1693591833691,0.26448,25551.0,25549.0,0.0151]
[1693591833892,0.1635,25550.0,25549.0,0.0151]
[1693591834100,0.26301,25550.0,25549.0,0.0151]
[1693591834425,0.08514,25551.0,25550.0,0.0951]
[1693591834641,0.003,25551.0,25550.0,0.22567605]
[1693591834976,0.07776,25553.0,25550.0,0.18867605]
[1693591835172,0.07776,25553.0,25552.0,0.0751]
[1693591835173,0.07998,25553.0,25552.0,0.0751]
[1693591835400,0.07896,25553.0,25552.0,0.0751]
[1693591835603,0.0951,25554.0,25552.0,0.0751]
[1693591835786,0.09516,25554.0,25552.0,0.0751]
[1693591835982,0.002,25553.0,25552.0,0.0751]
[1693591836507,0.156576,25555.0,25554.0,0.0951]
[1693591837899,0.158576,25555.0,25554.0,0.1191]
[1693591838727,0.160576,25555.0,25554.0,0.1561]
[1693591838930,0.002,25555.0,25554.0,0.1191]
[1693591839130,0.003,25555.0,25554.0,0.1341]
[1693591839330,0.001,25555.0,25554.0,0.1101]
[1693591839611,0.004,25555.0,25554.0,0.1471]
[1693591840117,0.001,25555.0,25554.0,0.0901]
[1693591840246,0.157559,25555.0,25554.0,0.0901]
[1693591840448,0.159559,25555.0,25554.0,0.1141]
[1693591840646,0.464359,25555.0,25554.0,0.1141]
[1693591840847,0.465919,25555.0,25554.0,0.1141]
[1693591841096,0.279499,25555.0,25554.0,0.1141]
[1693591841433,0.274999,25555.0,25554.0,0.1141]
[1693591841634,0.244279,25555.0,25554.0,0.1141]
[1693591841842,0.241279,25555.0,25554.0,0.1141]
[1693591842027,0.248599,25555.0,25554.0,0.1141]
[1693591842334,0.251719,25555.0,25554.0,0.1141]
[1693591842475,0.253699,25555.0,25554.0,0.1141]
[1693591842682,0.253219,25555.0,25554.0,0.1141]
[1693591842855,0.253519,25555.0,25554.0,0.1141]
[1693591843058,0.303679,25555.0,25554.0,0.1141]
[1693591843300,0.283579,25555.0,25554.0,0.1141]
[1693591843770,0.283579,25555.0,25554.0,0.1341]
[1693591843969,0.159559,25555.0,25554.0,0.1341]
[1693591844309,0.159559,25555.0,25554.0,0.52118678]
[1693591844511,0.003,25555.0,25554.0,0.52118678]
[1693591846183,0.003,25555.0,25554.0,0.1341]
[1693591846965,0.02539684,25555.0,25554.0,0.1341]
[1693591847130,0.159563,25555.0,25554.0,0.1341]
[1693591847332,0.289403,25555.0,25554.0,0.1341]
[1693591847532,0.289763,25555.0,25554.0,0.1341]
[1693591847738,0.290303,25555.0,25554.0,0.1341]
[1693591848063,0.003,25555.0,25554.0,0.52118678]
[1693591849497,0.003,25555.0,25554.0,0.1341]
[1693591850273,0.08682,25555.0,25554.0,0.1341]
[1693591850633,0.003,25555.0,25554.0,0.1341]
[1693591850852,0.08898,25555.0,25554.0,0.1341]
[1693591851059,0.08208,25555.0,25554.0,0.52118678]
[1693591851258,0.08208,25555.0,25554.0,0.86118678]
[1693591851259,0.003,25555.0,25554.0,0.86118678]
[1693591851793,0.003,25555.0,25554.0,0.84118678]
[1693591852000,0.003,25555.0,25554.0,0.52118678]
[1693591852400,0.0254475,25555.0,25554.0,0.1341]
[1693591852603,0.0254475,25555.0,25554.0,0.039]
[1693591852782,0.5085075,25555.0,25554.0,0.039]
[1693591853006,0.70450748,25555.0,25554.0,0.039]
[1693591853234,0.82340748,25555.0,25554.0,0.039]
[1693591853452,3.51763426,25555.0,25554.0,0.039]
[1693591853668,3.50791426,25555.0,25554.0,0.039]
[1693591853874,3.32321426,25555.0,25554.0,0.039]
[1693591854083,3.54413426,25555.0,25554.0,0.039]
[1693591854283,3.54485426,25555.0,25554.0,0.039]
[1693591854481,3.54665426,25555.0,25554.0,0.039]
[1693591854764,3.54755426,25555.0,25554.0,0.039]
[1693591854951,3.55475426,25555.0,25554.0,0.039]
[1693591855157,3.57815426,25555.0,25554.0,0.039]
[1693591855371,3.60785426,25555.0,25554.0,0.039]